Cogmind - Beta 15 @@@ ROGUE MODE // 2025.07.29 @ 19:31:21 Player: shapeshifter Result: Destroyed by 04-2KR(R) with Subdweller Machine Gun Performance ------------- Evolutions (0) 0 Regions Visited (3) 600 Robots Destroyed (15) 75 Value Destroyed (267) 267 Prototype IDs (0) 0 Alien Tech Used (0) 0 Bonus (0) 0 TOTAL SCORE: 942 Bonus ------- None Cogmind --------- Core Integrity 0/250 Matter 289/300 Energy 99/100 System Corruption 0% Temperature Cool (0) Movement Rolling (100) Location -10/Subcaves Parts ------- > --- POWER (1) -------- (None) > --- PROPULSION (2) --- Compact Wheel > --- UTILITY (2) ------ Medium Storage Unit Makeshift Light Armor Plating > --- WEAPON (2) ------- Light Assault Rifle > --- INVENTORY (10) --- Subdweller Power Source Subdweller Power Source Wheel Subdweller Monowheel Subdweller Monowheel Disposable Heat Sink High-capacity Matter Pod (200) Subdweller Optics Seismic Detector Subdweller Laser Peak State ------------ > --- POWER ------------ Ion Engine > --- PROPULSION ------- Aluminum Leg Makeshift Leg > --- UTILITY ---------- Medium Storage Unit Seismic Detector > --- WEAPON ----------- EM Pulse Gun Assault Rifle > --- INVENTORY -------- Light Ion Engine Subdweller Power Source Subdweller Power Source Wheel Compact Wheel High-capacity Matter Pod Subdweller Optics Makeshift Light Armor Plating Subdweller Laser Light Assault Rifle [Rating: 11] Favorites ----------- Power Ion Engine Engine Ion Engine Propulsion Light Treads Treads Light Treads Leg Aluminum Leg Wheel Compact Wheel Utility Seismic Detector Device Seismic Detector Storage Medium Storage Unit Protection Makeshift Light Armor Plating Weapon Assault Rifle Energy Gun EM Pulse Gun Energy Cannon Beam Cannon Ballistic Gun Assault Rifle Build | -11 -10 -10 -10 ------- Run | Yrd Mat Min Sub Slots Evolved . | . . . . Power . | . . . . Propulsion . | . . . . Utility . | . . . . Weapon . | . . . . Parts Attached 17 | 8 2 . 7 Power 2 | 2 . . . Engine 2 | 2 . . . Core . | . . . . Reactor . | . . . . Propulsion 5 | 2 . . 3 Treads 2 | 2 . . . Leg 2 | . . . 2 Wheel 1 | . . . 1 Hover . | . . . . Flight . | . . . . Utility 5 | 2 1 . 2 Device 2 | 1 . . 1 Storage 2 | 1 1 . . Processor . | . . . . Hackware . | . . . . Protection 1 | . . . 1 Artifact . | . . . . Weapon 5 | 2 1 . 2 Energy Gun 1 | . . . 1 Energy Cannon 1 | . 1 . . Ballistic Gun 3 | 2 . . 1 Ballistic Cannon . | . . . . Launcher . | . . . . Special Weapon . | . . . . Impact Weapon . | . . . . Slashing Weapon . | . . . . Piercing Weapon . | . . . . Special Melee Weapon . | . . . . Unidentified Prototypes . | . . . . Parts Lost 7 | . . . 7 Power 1 | . . . 1 Propulsion 3 | . . . 3 Utility 1 | . . . 1 Weapon 2 | . . . 2 Highest Loss Streak 3 | . . . 3 To Critical Strikes . | . . . . Average Backups 8 | 4 7 8 9 Power 1 | . 1 1 2 Propulsion 3 | 2 4 4 3 Utility 1 | . 1 2 2 Weapon 1 | . 1 1 1 Tool/Special . | . . . . Unused Backups 10 | . . . 10 Power 2 | . . . 2 Propulsion 4 | . . . 4 Utility 3 | . . . 3 Weapon 1 | . . . 1 Tool/Special . | . . . . Average Slot Usage (%) 99 | . 100 100 98 Engine 13 | . 14 14 13 Treads 21 | . 28 28 16 Leg 5 | . . . 9 Device 13 | . 14 14 13 Storage 14 | . 14 14 14 Energy Gun 4 | . . . 8 Energy Cannon 7 | . 4 14 5 Ballistic Gun 15 | . 23 14 14 Peak Build Rating 11 | 7 7 7 11 Average Rating 7 | 5 7 7 7 On Entrance 5 | . 7 7 7 Naked Turns . | . . . . Heaviest Build 21 | 14 21 21 21 Greatest Support 40 | 40 40 40 40 Greatest Overweight (x) 2 | 2 . . 1 Average Overweight (x) . | . . . . Largest Inventory Capacity 10 | 8 10 10 10 Average Capacity 9 | 7 8 10 10 Most Carried 10 | 7 9 8 10 Average Carried 8 | 4 7 8 9 Final Capacity 10 | 8 10 10 10 Final Carried 10 | 7 8 8 10 Class Distribution -------------------- 100% | Mutant Dominant Class ---------------- Mutant | -10/Materials Mutant | -10/Mines Mutant | -10/Subcaves Resources | -11 -10 -10 -10 ----------- Run | Yrd Mat Min Sub Matter Collected 728 | 287 83 86 272 Remotely . | . . . . Salvage Created 385 | 31 83 106 165 Parts 29 | 7 5 9 8 Haulers Intercepted . | . . . . Recyclers Shooed 1 | . . 1 . Parts Field Recycled . | . . . . Retrieved Matter . | . . . . Parts Self-Destructed 17 | . . . 17 Prevented . | . . . . Kills | -11 -10 -10 -10 ------- Run | Yrd Mat Min Sub Combat Hostiles Destroyed 10 | . 1 5 4 Guns 6 | . 1 3 2 Cannons 4 | . . 2 2 Classes Destroyed 6 | 1 3 1 1 Tunneler 3 | 2 . 1 . Operator 1 | . 1 . . Watcher 1 | . 1 . . Swarmer 6 | . . 5 1 Grunt 1 | . 1 . . Subdweller 3 | . . . 3 Best Kill Streak 3 | 1 2 3 2 Combat Bots Only 3 | . 1 3 2 Max Kills in Single Turn 2 | 1 1 2 1 Gunslinging . | . . . . Exploded . | . . . . Melee . | . . . . Uniques/NPCs Destroyed . | . . . . Combat | -11 -10 -10 -10 -------- Run | Yrd Mat Min Sub Hostile Shots Fired 111 | . 5 36 70 Missed 36 | . 2 12 22 Hits 75 | . 3 24 48 Projectile 75 | . 3 24 48 Damage Taken 1043 | . 34 191 818 Core 251 | . . 49 202 Absorbed by Shields . | . . . . Core Remaining (%) 100 | 100 . . . Volleys Fired 85 | 6 8 14 57 Largest 2 | 2 2 2 2 Hottest 80 | 40 40 80 80 Shots Fired 147 | 12 16 28 91 Gun 97 | 12 16 14 55 Cannon 50 | . . 14 36 Launcher . | . . . . Special . | . . . . Kinetic 86 | 12 16 14 44 Thermal 50 | . . 14 36 Explosive . | . . . . Electromagnetic 11 | . . . 11 Robot Hit Streak 13 | 5 11 13 9 Robot Miss Streak 7 | 1 1 7 6 Penetration Max . | . . . . Secondary Targets . | . . . . Shots Hit Robots 71 | 8 12 10 41 Core Hits 22 | 3 6 6 7 Critical Kills . | . . . . Critical Parts Destroyed . | . . . . Critical Strikes . | . . . . Melee Attacks . | . . . . Impact . | . . . . Slashing . | . . . . Piercing . | . . . . Sneak Attacks . | . . . . Combat Hostiles . | . . . . Follow-up Attacks . | . . . . Damage Inflicted 808 | 86 135 192 395 Guns 510 | 86 135 53 236 Cannons 295 | . . 139 156 Explosions . | . . . . Melee . | . . . . Ramming 3 | . . . 3 Kinetic 441 | 86 135 53 167 Thermal 295 | . . 139 156 Explosive . | . . . . Electromagnetic 69 | . . . 69 Impact . | . . . . Slashing . | . . . . Piercing . | . . . . Highest Corruption . | . . . . Average Corruption . | . . . . Corruption Purged . | . . . . Corruption Blocked . | . . . . Overload Shots . | . . . . Overflow Damage . | . . . . Projectiles . | . . . . Explosions . | . . . . Melee . | . . . . Knockbacks . | . . . . Impact . | . . . . Kinetic . | . . . . Secondary . | . . . . Self-Inflicted Damage . | . . . . Shots . | . . . . Rammed . | . . . . Targets Rammed 1 | . . . 1 Kicked 1 | . . . 1 Crushed . | . . . . Highest Temperature 162 | . 6 162 1 Average Temperature 64 | . 6 67 1 Received Heat Transfer 117 | . 18 . 99 Siege Activations . | . . . . Martial Activations . | . . . . Shielding Activations . | . . . . Robots Disrupted . | . . . . Combat Hostiles . | . . . . Robots Corrupted . | . . . . Combat Hostiles . | . . . . Parts Fried . | . . . . Impact Corruptions . | . . . . Robots Melted . | . . . . Combat Hostiles . | . . . . Parts Melted 1 | . . . 1 Heat Transferred 629 | . . 296 333 Parts Sabotaged . | . . . . Parts Stolen . | . . . . Parts Stripped . | . . . . Power Chain Reactions . | . . . . Alert | -11 -10 -10 -10 ------- Run | Yrd Mat Min Sub Maximum Alert Level . | . . . . Low Security (%) 100 | 100 100 100 . Level 1 . | . . . . Level 2 . | . . . . Level 3 . | . . . . Level 4 . | . . . . Level 5 . | . . . . High Security . | . . . . Max Security . | . . . . Peak Influence 100 | 5 30 100 . Initial . | . . . . Average 9 | . 2 19 . Influence Increases 212 | 10 42 140 20 Destroy 0b10 Robot/C 140 | . 20 100 20 Destroy 0b10 Robot/NC 25 | 10 10 5 . Destroy Leader 32 | . 12 20 . Lose Combat Pursuer 15 | . . 15 . Influence Decreases 212 | 10 42 58 102 Entered New Map 43 | . . . 43 Time Decay 169 | 10 42 58 59 Squads Dispatched 2 | . 2 . . Investigation 1 | . 1 . . Extermination . | . . . . Reinforcement 1 | . 1 . . Assault . | . . . . Garrison . | . . . . Intercept . | . . . . Searches Triggered . | . . . . Construction Impeded . | . . . . Haulers Reinforced . | . . . . Active Scanning Responses . | . . . . Cargo Convoy Interrupts . | . . . . Stealth | -11 -10 -10 -10 --------- Run | Yrd Mat Min Sub Distress Signals . | . . . . Communications Jammed . | . . . . Distress Signals . | . . . . Times Spotted 15 | . 2 7 6 Peak Tracking Total 3 | . 1 3 2 Tactical Retreats 1 | . . 1 . Traps | -11 -10 -10 -10 ------- Run | Yrd Mat Min Sub Traps Triggered . | . . . . Indirectly . | . . . . Trap Hack Attempts . | . . . . Triggered . | . . . . Disarmed . | . . . . Reprogrammed . | . . . . Reused . | . . . . Traps Extracted . | . . . . Installed . | . . . . Triggered . | . . . . Machines | -11 -10 -10 -10 ---------- Run | Yrd Mat Min Sub Machines Disabled . | . . . . Max in Single Turn . | . . . . Machines Repaired . | . . . . Machines Dismantled . | . . . . Machines Sabotaged . | . . . . Overloaded Fab Kills . | . . . . Hacking | -11 -10 -10 -10 --------- Run | Yrd Mat Min Sub Machines Accessed 3 | . 2 . 1 Terminals 2 | . 2 . . Fabricators . | . . . . Repair Stations . | . . . . Recycling Units . | . . . . Scanalyzers . | . . . . Garrison Access . | . . . . Total Hacks 8 | . 5 . 3 Successful 4 | . 1 . 3 Failed 4 | . 4 . . Catastrophic 1 | . 1 . . Database Lockouts . | . . . . Manual 5 | . 5 . . Terminals 5 | . 5 . . Fabricators . | . . . . Repair Stations . | . . . . Recycling Units . | . . . . Scanalyzers . | . . . . Garrison Access . | . . . . Terminal Hacks 4 | . 1 . 3 Record 3 | . . . 3 Branch Access Points 1 | . 1 . . Fabricator Hacks . | . . . . Repair Station Hacks . | . . . . Recycling Unit Hacks . | . . . . Scanalyzer . | . . . . Garrison Access Hacks . | . . . . Unauthorized Hacks . | . . . . Terminals . | . . . . Fabricators . | . . . . Repair Stations . | . . . . Recycling Units . | . . . . Scanalyzers . | . . . . Garrison Access . | . . . . Data Cores Recovered . | . . . . Used . | . . . . Hacking Detections 2 | . 2 . . Full Trace Events 1 | . 1 . . Feedback Events . | . . . . Feedback Blocked . | . . . . Robot Schematics Acquired . | . . . . Robots Built . | . . . . Authchips . | . . . . Time . | . . . . Total Robot Build Rating . | . . . . Part Schematics Acquired . | . . . . Parts Built . | . . . . Authchips . | . . . . Time . | . . . . Total Part Build Rating . | . . . . Parts Repaired . | . . . . Time . | . . . . Parts Recycled . | . . . . Recycled Matter . | . . . . Retrieved Matter . | . . . . Retrieved Components . | . . . . Parts Scanalyzed . | . . . . Part Schematics Acquired . | . . . . Parts Damaged . | . . . . Bothacking | -11 -10 -10 -10 ------------ Run | Yrd Mat Min Sub Used RIF Installer . | . . . . Robots Hacked . | . . . . Non-combat . | . . . . Combat . | . . . . Robot Hacks Applied . | . . . . Relay Couplers Released . | . . . . Fabnet Peak Effective % . | . . . . Robots Rewired . | . . . . Allies Hacked . | . . . . Hacks Repelled . | . . . . Allies | -11 -10 -10 -10 -------- Run | Yrd Mat Min Sub Total Allies . | . . . . Largest Group . | . . . . Highest-Rated Group . | . . . . Highest-Rated Ally . | . . . . Total Orders . | . . . . Ally Attacks . | . . . . Total Damage . | . . . . Kills . | . . . . Allies Corrupted . | . . . . Allies Melted . | . . . . Intel | -11 -10 -10 -10 ------- Run | Yrd Mat Min Sub Active Infowar (turns) 1854 | 79 339 412 1024 Seismic 1854 | 79 339 412 1024 Robot Analysis Total . | . . . . Derelict Logs Recovered . | . . . . Drone Launches . | . . . . Drone Recoveries . | . . . . Exploration | -11 -10 -10 -10 ------------- Run | Yrd Mat Min Sub Turns Passed 1954 | 163 339 412 1040 Spaces Moved 921 | 84 156 110 571 Core 22 | 22 . . . Treads 775 | 62 156 110 447 Legs 69 | . . . 69 Wheels 55 | . . . 55 Hover . | . . . . Flight . | . . . . Fastest Speed 50 | 50 160 160 100 Average Speed 154 | 149 160 160 151 Slowest Speed 160 | 160 160 160 160 Overloaded Moves . | . . . . Propulsion Burnouts . | . . . . Robots Hopped . | . . . . Potential Cave-ins . | . . . . Cave-ins Triggered . | . . . . Exploration Rate (%) 26 | 6 36 22 40 Regions Visited 3 Branch Regions 2 Pre-discovered Areas . | . . . . Known Exits Taken 1 | . 1 . . Unknown Exits Taken 2 | 1 . 1 . Scrap Searched . | . . . . Spaces Dug . | . . . . Terrain Destroyed . | . . . . Melee . | . . . . Projectile . | . . . . AOE . | . . . . Terrain Rammed . | . . . . Walls Destroyed . | . . . . Machines Disabled . | . . . . Actions | -11 -10 -10 -10 --------- Run | Yrd Mat Min Sub Total 1317 | 111 233 318 655 Wait 261 | . 60 195 6 Move 918 | 83 155 109 571 Hop . | . . . . Pick Up 27 | 14 4 . 9 Fast Attach 1 | . . . 1 Attach 11 | 7 . . 4 Detach . | . . . . Swap 5 | 1 2 . 2 Drop 8 | . 4 . 4 Fire 85 | 6 8 14 57 Melee . | . . . . Ram . | . . . . Kick 1 | . . . 1 Crush . | . . . . Escape Stasis . | . . . . Rewire . | . . . . Trap . | . . . . Miscellaneous . | . . . . Route ------- -11/Scrapyard -10/Materials (discovered 3 exits: [*Mat] / *Min x2) -10/Mines -10/Subcaves History --------- Turn | Location | Event 7 | -11/Scrapyard | Discovered new exit (range 15) 164 | -11/Scrapyard | Entered Materials 317 | -10/Materials | Build established: Mutant 396 | -10/Materials | Discovered new exit (range 11) 476 | -10/Materials | Discovered new exit (range 14) 484 | -10/Materials | Identified exit to Mines 503 | -10/Materials | Entered Mines 762 | -10/Mines | Discovered new exit (range 5) 915 | -10/Mines | Entered Subcaves 1331 | -10/Subcaves | Core integrity fell below 50% 1562 | -10/Subcaves | A swath of the cavern ceiling suddenly collapsed 1831 | -10/Subcaves | Visited Clippyterm 1836 | -10/Subcaves | Learned Factory fabricator intel 1903 | -10/Subcaves | Shifting Twisted Machinery released Mak. Hammer 1907 | -10/Subcaves | Shifting Twisted Machinery released Scrap Shield 1950 | -10/Subcaves | Core integrity fell below 20% 1955 | -10/Subcaves | Destroyed by 04-2KR(R) with Subdweller Machine Gun Last Messages --------------- 01843_ Dropped Assault Rifle. 01844_ Acquired Sub. Monowheel. 01850_ 62-9CU(R): "ECOKILL!" 01850_ Mak. Leg destroyed. 01862_ 62-9CU(R) misfires. 01862_ 62-9CU(R) destroyed. 01866_ Subatomizers dissect the Lgt. Ion Engine. 01881_ Acquired Disposable Heat Sink. 01882_ Acquired 20 matter. 01884_ Dropped Lgt. Ion Engine. 01885_ Acquired Sub. Monowheel. Mak. Hammer falls loose from the Twisted Machinery. Scrap Shield falls loose from the Twisted Machinery. 01931_ Aluminum Leg destroyed. 01933_ Subatomizers dissect the Sub. Monowheel, destroying it. 01935_ Ion Engine destroyed. 01947_ EM Pulse Gun destroyed. Map ----- +----------------------------------------------------+ | ?????????????????????????????????????????????????? | | ?????????????????????????????????????????????????? | | ?????????????????????????????????????????????????? | | ?????????????????????????????????????????????????? | | ?????????????????????????????????????????????????? | | ?????????????????????????????????????????????????? | | ?????????????????????????????????????????????????? | | ?????????????????????????????????????????????????? | | ???????????????????????????????????????????????##? | | ????????????????????????????????????????????? ? | | ???????????????????????????##???????????????? ""? | | ??????????????????????????## ##?????????????? "?? | | ??????????????????????????# ##????????????" #?? | | ????????????????????????### ##????####???""##? | | ???????????????????????"" ""###?## #?## "#? | | ???????????????????????"" """ ### ### " #? | | ????????????????????????" "=""" ## """## | | ???????????????????????""""""&"" """### | | ?????????????????????? """"/&%" ## *& " ""## | | ??????????????????????""" !"" #### %& "" "" | | ??????????????????????# ### " #??### #### "" | | ???????????????????????????#"" ###??# ##??# # ## | | ???????????????????????????#" "" #### #??#####? | | ????????????????????######?## """"## #???????? | | ????????????????# # #### """""" ##???????? | | ????????????"" " @ R """ ### #????????? | | ?????????????""" """""#?## ##???????? | | ?????????????## ###### # ##""####?# #???????? | | ??????????????????????##########????# #???????? | | ????????????????????????????????????# ##???????? | | ???????????????????????????????????## ##????????? | | ???????????????????????????????????# #????????? | | ??????????????????????????????????### ##????????? | | ?????????????????????????????????## #?????????? | | ?????????????????????????????????# ##????????? | | ?????????????????????????????????# #????????? | | ????????????????????????????######* #????????? | | ????????????????????????????#"""### ##????????? | | ????????????????????????????#"" ## [ #?????????? | | ????????????????????????????#"X% ##?????????? | | ????????????????????????????#"" ## #??????????? | | ????????????????????????????#"""## #??????????? | | ????????????????????????????######## ####?#????## | | ??????????????????????????????????## # # # # ## | | ??????????????????????????????????# | | ??????????????????????????????????# | | ??????????????????????????????????# ## ## | | ??????????????????????????????????#### ###????### | | ?????????????????????????????????????# #????????? | | ?????????????????????????????????????# #??####### | +----------------------------------------------------+ Best States ------------- Heat Dissipation 25 Energy Generation 10 Energy Capacity 250 Matter Stores 300 Matter Capacity 300 Sight Range 16 Terrain Scan Density 10 Armor Coverage 100 Evasion (%) 50 Recoil Reduction 2 Item Schematics ----------------- None Robot Schematics ------------------ None Fabricated ------------ Nothing Repaired ---------- Nothing Alien Tech Used ----------------- None Achievements -------------- None Challenges ------------ None Game ------ Seed DirtyNuclearLauncher Manual? 0 Play Time 00:13:20 Cumulative 72.7 hours Start 2025.07.29 @ 19:20:33 End 2025.07.29 @ 19:31:21 Sessions 1 Manual Loads 0 Difficulty Rogue Special Mode None Game No. 152 Rogue 152 Adventurer 0 Explorer 0 Win Type - Total 1 Types 1/0/0/0/0/0/0/0/0/0 Lore% 54 Gallery% 51 Achievement% 38 Wizard Run 0 Options --------- Layout 1 ASCII 0 Keyboard 0 Movement Mouse Keybinds 0 Fullscreen 1 Font 24/Smallcaps Map View 50x40 Zoom Use 0% Tactical HUD 1 Map Filters NONE Filters NONE Steam 1 RUN: 33a5ccf8-bb6f-4e56-99b7-74cdc2aeca5e